bitfinex/quotes_ETHUSD_20240816
["timestamp","ask_amount","ask_price","bid_price","bid_amount"]
[1723846597166,0.126935,2604.8,2604.7,6.83919]
[1723846597334,0.55,2604.8,2604.7,6.83919]
[1723846597744,0.55,2605.0,2604.8,3.83906]
[1723846597946,0.55,2605.0,2604.9,3.0]
[1723846598142,0.67693559,2605.0,2604.9,3.0]
[1723846598343,0.67693618,2605.0,2604.8,3.0]
[1723846598673,0.12693618,2604.9,2604.8,3.0]
[1723846598847,0.67693712,2604.9,2604.8,3.0]
[1723846599269,0.67693712,2604.9,2604.8,6.83906]
[1723846600133,0.67693714,2604.9,2604.8,6.83906]
[1723846600932,0.67693714,2604.9,2604.8,3.0]
[1723846602377,0.55,2604.9,2604.8,3.0]
[1723846602556,0.12693637,2604.9,2604.8,3.0]
[1723846602763,0.67693637,2604.9,2604.8,3.0]
[1723846603476,0.55,2604.9,2604.8,6.83906]
[1723846603636,0.55,2605.0,2604.8,6.83906]
[1723846603841,0.12693752,2604.9,2604.8,6.83906]
[1723846604048,0.67693752,2604.9,2604.8,6.83906]
[1723846604254,0.676937,2604.9,2604.8,6.83906]
[1723846604850,0.55,2604.9,2604.8,6.83906]
[1723846605060,0.55,2605.0,2604.8,6.83906]
[1723846605446,0.1269366,2604.9,2604.8,3.0]
[1723846605668,0.6769366,2604.9,2604.8,3.0]
[1723846607874,2.257,2604.8,2604.7,3.0]
[1723846608176,2.807,2604.8,2604.7,3.0]
[1723846609157,2.93394195,2604.8,2604.7,3.0]
[1723846610980,2.933941,2604.8,2604.7,3.0]
[1723846611478,3.633941,2604.8,2604.7,3.0]
[1723846611679,3.633941,2604.8,2604.5,3.0]
[1723846611680,3.9973351,2604.8,2604.5,3.0]
[1723846611887,2.257,2604.6,2604.3,3.0]
[1723846612046,0.55,2604.5,2604.3,3.0]
[1723846612885,0.55,2604.5,2604.3,6.83979]
[1723846613947,0.12695974,2604.4,2604.3,6.83979]
[1723846614284,0.67695974,2604.4,2604.3,6.83979]
[1723846614451,0.67695885,2604.4,2604.3,6.83979]
[1723846614650,0.55,2604.4,2604.3,6.83979]
[1723846614876,0.55,2604.5,2604.3,6.83979]
[1723846615084,0.12695688,2604.4,2604.3,6.83979]
[1723846615281,0.67695688,2604.4,2604.3,6.83979]
[1723846618664,0.67695652,2604.4,2604.3,6.83979]
[1723846621424,0.67695652,2604.4,2604.3,3.0]
[1723846621615,0.67695926,2604.4,2604.2,3.0]
[1723846621763,0.67695926,2604.3,2604.2,3.0]
[1723846622072,0.67696175,2604.3,2604.2,6.83995]
[1723846622473,0.67696175,2604.3,2604.2,10.6799]
[1723846622674,2.8239005,2604.8,2604.4,3.83956]
[1723846622882,0.67694651,2604.7,2604.5,3.0]
[1723846623190,0.12694651,2604.6,2604.5,3.0]
[1723846623387,0.67694651,2604.6,2604.5,3.0]
[1723846624076,0.67694651,2604.6,2604.5,10.679]
[1723846624272,0.67694651,2604.6,2604.5,12.9317]
[1723846624489,0.12694651,2604.6,2604.5,16.7712]
[1723846624687,3.69343283,2605.3,2605.2,3.83847]
[1723846624890,3.82036362,2605.3,2605.2,3.83847]
[1723846625094,0.12693079,2605.3,2605.2,6.83847]
[1723846625693,0.12693079,2605.3,2605.2,3.0]
[1723846626077,0.67693079,2605.3,2605.2,3.0]
[1723846629814,0.55,2605.3,2605.2,3.0]
[1723846629983,0.67691632,2605.3,2605.2,3.0]
[1723846631310,0.67691632,2605.3,2605.2,6.83847]
[1723846631515,0.12691632,2605.3,2605.2,10.67694]
[1723846631686,0.80463062,2605.8,2605.2,6.83847]
[1723846631887,0.12689374,2605.7,2605.6,7.67576]
[1723846632114,0.12689374,2605.7,2605.6,10.67576]
[1723846632501,0.12689374,2605.7,2605.6,6.83788]
[1723846634108,3.16049374,2605.7,2605.6,3.0]
[1723846634381,0.7,2605.6,2605.4,3.0]
[1723846634713,0.67690913,2605.5,2605.4,3.0]
[1723846636795,1.48131811,2605.5,2605.2,3.0]
[1723846636979,0.12690913,2605.4,2605.2,6.83845]
[1723846637183,0.12690913,2605.4,2605.3,3.83832]
[1723846637512,0.67690913,2605.4,2605.3,6.83832]
[1723846638411,0.67690913,2605.4,2605.3,3.0]
[1723846638614,0.67690913,2605.4,2605.2,3.0]
[1723846638781,0.55,2605.4,2605.2,3.0]
[1723846639114,0.55,2605.4,2605.2,6.83839]
[1723846639302,0.55,2605.5,2605.2,6.83839]
[1723846639506,0.12691126,2605.4,2605.2,6.83839]
[1723846639716,0.55,2605.5,2605.2,6.83839]
[1723846639915,0.12691158,2605.4,2605.2,6.83839]
[1723846640091,0.55,2605.5,2605.2,6.83839]
[1723846640297,0.12690824,2605.4,2605.2,6.83839]
[1723846640492,0.55,2605.5,2605.2,6.83839]
[1723846640713,0.1269105,2605.4,2605.2,6.83839]
[1723846640927,0.55,2605.5,2605.2,6.83839]
[1723846641127,0.55,2605.5,2605.3,3.83824]
[1723846641421,0.55,2605.5,2605.4,6.83818]
[1723846643821,2.8148,2605.5,2605.4,0.7377]
[1723846644030,2.8148,2605.5,2604.6,0.53326099]
[1723846644031,2.2648,2605.0,2604.3,3.83969]
[1723846644197,0.1269023,2604.9,2604.5,1.658]
[1723846644404,0.55,2604.8,2604.5,1.658]
[1723846644695,0.55,2604.8,2604.5,5.49749]
[1723846644899,0.55,2604.9,2604.5,9.33698]
[1723846645098,0.12694174,2604.8,2604.5,9.33698]
[1723846645327,0.55,2604.9,2604.5,9.33698]
[1723846645328,0.55,2604.7,2604.5,9.33698]
[1723846645503,0.55,2604.7,2604.5,5.49749]
[1723846645701,0.55,2604.9,2604.5,5.49749]
[1723846646046,3.0689992,2604.7,2604.1,3.83999]
[1723846646342,0.1269435,2604.6,2604.2,3.83984]
[1723846646493,0.6769435,2604.6,2604.2,3.83984]
[1723846646695,0.1269435,2604.5,2604.2,3.83984]
[1723846646891,0.55,2604.4,2604.2,3.83984]
[1723846647241,0.55,2604.4,2604.0,3.84011]
[1723846648596,0.55,2604.4,2604.1,6.83996]
[1723846649646,0.55,2604.4,2604.2,3.83993]
[1723846649809,1.5041992,2604.8,2604.3,3.0]
[1723846650011,0.12694864,2604.7,2604.5,3.83948]
[1723846650327,0.7,2604.8,2604.6,3.0]
[1723846650645,0.12694873,2604.7,2604.6,3.0]
[1723846651104,0.67694873,2604.7,2604.6,3.0]
[1723846652116,0.55,2604.7,2604.6,3.0]
[1723846652331,3.14717024,2604.7,2604.6,3.0]
[1723846652543,3.14717962,2604.7,2604.2,3.0]
[1723846652729,0.6769597,2604.6,2604.3,3.8398]
[1723846652934,0.12695425,2604.5,2604.4,3.0]
[1723846653232,0.55,2604.5,2604.4,3.0]
[1723846653613,0.55,2604.6,2604.4,3.0]
[1723846654633,0.12695575,2604.5,2604.4,3.0]
[1723846654827,0.67695575,2604.5,2604.4,3.0]
[1723846656150,0.55,2604.5,2604.4,3.0]
[1723846656336,0.55,2604.6,2604.4,3.0]
[1723846656529,0.92337208,2604.6,2604.4,3.0]
[1723846659220,0.55,2604.6,2604.4,3.0]
[1723846664128,0.12695299,2604.5,2604.4,3.0]
[1723846664364,0.67695299,2604.5,2604.4,3.0]
[1723846664728,0.55,2604.5,2604.4,3.0]
[1723846664927,0.1269543,2604.5,2604.4,3.0]
[1723846665152,3.25782181,2604.5,2604.4,3.0]
[1723846665576,3.25782181,2604.5,2604.3,3.0]
[1723846665779,0.6769543,2604.4,2604.3,3.0]
[1723846668868,0.67695879,2604.4,2604.3,3.0]
[1723846669370,0.67695879,2604.4,2604.2,3.0]
[1723846669570,0.12695879,2604.3,2604.2,3.0]
[1723846670575,0.12695879,2604.3,2604.2,6.83991]
[1723846672845,0.12695522,2604.3,2604.2,6.83991]
[1723846673292,0.55,2604.4,2604.2,6.83991]
[1723846673447,0.1269561,2604.3,2604.2,6.83991]
[1723846676092,0.1269561,2604.3,2604.2,10.67986]
[1723846676302,0.1269561,2604.3,2604.2,16.80751]
[1723846676843,7.3862379,2604.7,2604.6,3.83936]
[1723846677067,0.12694563,2604.7,2604.6,6.83936]
[1723846677768,0.12694563,2604.7,2604.6,3.0]
[1723846678100,4.99497668,2604.7,2604.6,3.0]
[1723846678972,1.30200715,2604.7,2604.6,3.0]
[1723846679171,4.99497668,2604.7,2604.6,3.0]
[1723846681210,7.42567668,2604.7,2604.6,3.0]
[1723846681424,7.42567668,2604.7,2604.3,3.83973]
[1723846681425,7.42579162,2604.7,2604.4,6.83957]
[1723846681573,0.67694563,2604.6,2604.4,6.83957]
[1723846681773,0.12694563,2604.5,2604.4,6.83957]
[1723846683804,0.55,2604.6,2604.4,6.83957]
[1723846684027,0.12694612,2604.5,2604.4,6.83957]
[1723846684742,0.12694612,2604.5,2604.4,10.67922]
[1723846685627,0.12694612,2604.5,2604.4,6.83957]
[1723846687910,0.12694612,2604.5,2604.4,8.49857]
[1723846688540,3.37914532,2604.5,2604.4,8.49857]
[1723846688897,0.93114532,2604.5,2604.4,8.49857]
[1723846689595,1.33324492,2604.5,2604.4,8.49857]
[1723846690394,0.12694612,2604.5,2604.4,8.49857]
[1723846690802,1.33324492,2604.5,2604.4,8.49857]
[1723846692235,0.12694612,2604.5,2604.4,8.49857]
[1723846692631,0.93403702,2604.5,2604.4,8.49857]
[1723846692835,0.93403702,2604.5,2604.4,12.33822]
[1723846693036,0.93403702,2604.5,2604.4,16.17787]
[1723846693037,0.12694612,2604.5,2604.4,16.17787]
[1723846693256,0.80696716,2604.8,2604.7,3.83921]
[1723846693401,0.1269288,2604.8,2604.7,8.882131]
[1723846693601,0.1269288,2604.8,2604.7,12.33742]
[1723846694034,0.93389596,2604.8,2604.7,8.49821]
[1723846694349,0.9336689,2604.8,2604.7,8.49821]
[1723846696720,4.54522437,2604.8,2604.7,4.659]
[1723846696921,4.54522437,2604.8,2604.7,1.659]
[1723846697457,3.33892557,2604.8,2604.7,1.659]
[1723846697822,4.54522437,2604.8,2604.7,1.659]
[1723846698958,0.7,2604.7,2604.6,3.0]
[1723846699143,3.19858988,2604.7,2604.4,4.659]
[1723846699471,1.88669827,2604.6,2604.4,1.659]
[1723846699630,2.56166798,2604.6,2604.5,3.0]
[1723846699954,1.47885458,2604.6,2604.4,1.659]
[1723846700264,0.12695607,2604.5,2604.4,1.659]
[1723846700430,0.67695607,2604.5,2604.4,1.659]
[1723846700629,1.88673348,2604.5,2604.4,1.659]
[1723846702643,5.2652995,2604.5,2604.4,1.659]
[1723846703734,3.92856602,2604.5,2604.4,1.659]
[1723846703927,3.93146394,2604.5,2604.4,1.659]
[1723846704234,3.80451056,2604.5,2604.4,1.659]
[1723846704440,3.12495328,2604.5,2604.4,1.659]
[1723846705049,3.9314768,2604.5,2604.4,1.659]
[1723846705345,4.33473069,2604.5,2604.4,1.659]
[1723846705751,3.12495328,2604.5,2604.4,1.659]
[1723846705940,4.24059743,2604.5,2604.4,1.659]
[1723846706730,5.45039386,2604.5,2604.3,3.0]
[1723846706930,0.67695328,2604.4,2604.3,3.0]
[1723846707134,1.88674971,2604.4,2604.3,3.0]
[1723846707720,3.66329767,2604.4,2604.3,3.0]
[1723846708021,3.66329767,2604.4,2604.1,3.0]
[1723846708232,0.80655068,2604.2,2604.1,3.0]
[1723846708430,3.85460396,2604.2,2604.1,3.0]
[1723846708726,4.69953864,2604.2,2604.1,3.0]
[1723846708970,1.48352079,2604.2,2604.1,6.84009]
[1723846709300,0.67697011,2604.2,2604.1,6.84009]
[1723846709976,0.67696252,2604.2,2604.1,6.84009]
[1723846712716,0.67696193,2604.2,2604.1,6.84009]
[1723846713487,0.67696646,2604.2,2604.1,6.84009]
[1723846713779,0.67696549,2604.2,2604.1,6.84009]
[1723846715814,0.67696549,2604.2,2604.1,10.68018]
[1723846716019,0.12696549,2604.2,2604.1,10.68018]
[1723846716221,0.80655068,2604.7,2604.2,3.83992]
[1723846716445,0.80655068,2604.7,2604.6,5.49836]
[1723846716717,0.93348753,2604.7,2604.6,12.33772]
[1723846717229,0.93348753,2604.7,2604.6,8.49836]
[1723846717887,1.48348753,2604.7,2604.6,8.49836]
[1723846719236,0.67693685,2604.7,2604.6,6.83936]
[1723846719384,1.88673328,2604.7,2604.6,6.83936]
[1723846719812,4.25783328,2604.7,2604.6,3.0]
[1723846720013,3.04803685,2604.7,2604.6,3.0]
[1723846720241,4.25741298,2604.7,2604.6,3.0]
[1723846720440,4.65643525,2604.7,2604.6,3.0]
[1723846720814,5.6929764,2604.7,2604.6,3.0]
[1723846721144,5.29402692,2604.7,2604.6,3.0]
[1723846721359,5.99396932,2604.7,2604.6,3.0]
[1723846721643,2.3711,2604.6,2604.4,3.0]
[1723846721812,2.3711,2604.6,2604.2,5.49891]
[1723846721813,1.33644601,2604.5,2604.3,3.0]
[1723846722013,1.37693685,2604.4,2604.3,3.0]
[1723846722215,2.18328182,2604.4,2604.3,3.0]
[1723846722417,2.18328182,2604.4,2604.2,4.659]
[1723846722602,0.93328752,2604.3,2604.2,8.49895]
[1723846722799,0.67693685,2604.3,2604.2,8.49895]
[1723846724203,1.20950916,2604.5,2604.4,3.83956]
[1723846724204,0.80635067,2604.5,2604.4,3.83956]
[1723846724552,0.93324517,2604.5,2604.4,6.83965]
[1723846724831,0.93324517,2604.5,2604.4,8.49865]
[1723846725447,0.93324517,2604.5,2604.4,12.3383]
[1723846725746,0.12695394,2604.5,2604.4,14.631]
[1723846726136,0.80629123,2604.8,2604.7,3.83921]
[1723846726337,1.48322778,2604.8,2604.7,8.49821]
[1723846726799,1.48322832,2604.8,2604.7,8.49821]
[1723846727000,1.48308692,2604.8,2604.7,8.49821]
[1723846727771,1.88644625,2604.8,2604.7,8.49821]
[1723846727970,0.67693709,2604.8,2604.7,8.49821]
[1723846728115,1.88644625,2604.8,2604.7,8.49821]
[1723846728321,1.4830817,2604.8,2604.7,8.49821]
[1723846728539,1.48308384,2604.8,2604.7,8.49821]
[1723846728875,0.67693923,2604.8,2604.7,8.49821]
[1723846729019,1.48304723,2604.8,2604.7,8.49821]
[1723846730217,0.67693923,2604.8,2604.7,4.659]
[1723846730422,1.48300757,2604.8,2604.7,3.0]
[1723846730830,3.93750757,2604.8,2604.7,3.0]
[1723846731032,5.08826804,2604.8,2604.7,3.0]
[1723846735624,4.34094839,2604.8,2604.7,3.0]
[1723846738065,4.34095292,2604.8,2604.7,3.0]
[1723846739248,4.34095292,2604.8,2604.5,4.659]
[1723846739433,0.8060899,2604.6,2604.5,4.659]
[1723846739632,0.93303366,2604.6,2604.5,4.659]
[1723846739831,1.48303366,2604.6,2604.5,4.659]
[1723846740437,0.67694376,2604.6,2604.5,1.659]
[1723846740638,2.44778808,2604.6,2604.4,3.0]
[1723846740834,3.93768669,2604.5,2604.4,3.0]
[1723846741040,3.93768669,2604.5,2604.4,1.659]
[1723846741041,1.88641267,2604.5,2604.4,1.659]
[1723846741972,1.48322601,2604.5,2604.4,1.659]
[1723846742867,1.48322601,2604.5,2604.4,5.49865]
[1723846743072,1.48322601,2604.5,2604.4,8.49865]
[1723846744507,1.48323632,2604.5,2604.4,8.49865]
[1723846744663,0.93323632,2604.5,2604.4,6.83965]
[1723846744984,0.12695407,2604.5,2604.4,8.49865]
[1723846745354,0.93323632,2604.5,2604.4,8.49865]
[1723846745886,0.12695407,2604.5,2604.4,8.49865]
[1723846746085,0.93323632,2604.5,2604.4,8.49865]
[1723846746241,0.12695407,2604.5,2604.4,8.49865]
[1723846747394,0.93323632,2604.5,2604.4,8.49865]
[1723846747588,0.12695407,2604.5,2604.4,8.49865]
[1723846747889,0.12695407,2604.5,2604.4,12.3383]
[1723846748386,0.80628225,2604.7,2604.6,3.83936]
[1723846748593,0.93322196,2604.7,2604.6,8.49836]
[1723846749076,0.80628225,2604.7,2604.6,8.49836]
[1723846749291,3.4034228,2604.7,2604.6,4.659]
[1723846749498,3.40349452,2604.7,2604.6,3.0]
[1723846749793,0.93329452,2604.7,2604.6,3.0]
[1723846750655,0.93329452,2604.7,2604.6,8.49836]
[1723846750858,0.12694055,2604.7,2604.6,16.17708]
[1723846751064,0.80635397,2605.1,2605.0,7.67754]
[1723846751266,0.80635397,2605.2,2605.1,7.67724]
[1723846751453,0.80635397,2605.3,2605.2,3.83847]
[1723846751649,0.93326699,2605.3,2605.2,5.49747]
[1723846751874,0.12691302,2605.3,2605.2,12.33594]
[1723846752285,3.27655397,2605.7,2605.4,3.83811]
[1723846752503,0.12689964,2605.6,2605.5,3.0]
[1723846752691,0.93325184,2605.6,2605.5,3.0]
[1723846753184,0.12689787,2605.6,2605.5,3.0]
[1723846753389,0.67689787,2605.6,2605.5,3.0]
[1723846755262,0.67689787,2605.6,2605.4,4.659]
[1723846755263,1.07359314,2605.6,2605.4,4.659]
[1723846755448,0.67689787,2605.5,2605.4,4.659]
[1723846756804,0.67690699,2605.5,2605.4,4.659]
[1723846758892,0.67690699,2605.5,2605.4,3.0]
[1723846758893,4.24245309,2605.5,2605.4,3.0]
[1723846759064,4.24245309,2605.5,2605.2,3.0]
[1723846759383,0.12690699,2605.4,2605.2,8.49747]
[1723846759584,0.55,2605.3,2605.2,4.659]
[1723846759885,0.67691481,2605.3,2605.2,1.659]
[1723846760086,0.55,2605.3,2605.2,1.659]
[1723846760262,0.55,2605.4,2605.2,5.49745]
[1723846760468,0.98719001,2605.4,2605.3,3.0]
[1723846760790,1.11410506,2605.4,2605.3,3.0]
[1723846761193,0.98719001,2605.4,2605.3,3.0]
[1723846761397,0.67691263,2605.4,2605.3,3.0]
[1723846761593,0.67691104,2605.4,2605.3,3.0]
[1723846764569,0.67691104,2605.4,2605.2,4.659]
[1723846764790,0.55,2605.4,2605.2,8.49745]
[1723846769215,1.0026554,2605.4,2605.2,8.49745]
[1723846769499,0.12691478,2605.3,2605.2,8.49745]
[1723846769674,0.67691478,2605.3,2605.2,8.49745]
[1723846770074,0.55,2605.3,2605.2,8.49745]
[1723846772381,0.67691068,2605.3,2605.2,8.49745]
[1723846772775,0.67691196,2605.3,2605.2,8.49745]
[1723846773179,0.55,2605.3,2605.2,8.49745]
[1723846773384,0.55,2605.4,2605.2,8.49745]
[1723846774205,0.12690827,2605.3,2605.2,8.49745]
[1723846774400,0.67690827,2605.3,2605.2,8.49745]
[1723846774570,0.55,2605.3,2605.2,8.49745]
[1723846774893,0.12690619,2605.3,2605.2,8.49745]
[1723846775197,0.67690619,2605.3,2605.2,8.49745]
[1723846777903,0.55,2605.3,2605.2,8.49745]
[1723846778103,0.12690891,2605.3,2605.2,8.49745]
[1723846778304,0.67690891,2605.3,2605.2,8.49745]
[1723846782112,0.12690891,2605.3,2605.2,12.33592]
[1723846782321,0.80635397,2605.9,2605.8,7.67518]
[1723846782540,0.7,2606.1,2606.0,3.83729]
[1723846782679,0.12688186,2606.1,2606.0,9.33358]
[1723846782880,0.12688186,2606.1,2606.0,12.33358]
[1723846783778,2.4853,2606.7,2606.5,3.83651]
[1723846783981,0.12684821,2606.6,2606.5,5.49551]
[1723846784278,0.12684821,2606.6,2606.5,8.49551]
[1723846784679,0.46869843,2606.6,2606.5,6.83651]
[1723846785080,0.46869843,2606.6,2606.5,3.0]
[1723846785285,1.01869843,2606.6,2606.5,6.83656]
[1723846785510,0.67684821,2606.6,2606.5,6.83656]
[1723846787022,0.55,2606.6,2606.5,6.83656]
[1723846787182,1.37685527,2606.6,2606.5,3.0]
[1723846787388,1.37685527,2606.6,2606.1,3.83708]
[1723846787389,1.37685527,2606.6,2606.2,4.659]
[1723846787714,0.67685527,2606.5,2606.3,3.83684]
[1723846787913,0.67685527,2606.5,2606.4,3.0]
[1723846787914,0.55,2606.5,2606.4,3.0]
[1723846788089,0.67686262,2606.5,2606.4,3.0]
[1723846790324,0.67686262,2606.5,2606.4,8.4957]
[1723846790502,0.55,2606.5,2606.4,8.4957]
[1723846790690,0.67685163,2606.5,2606.4,8.4957]
[1723846791091,0.55,2606.5,2606.4,8.4957]
[1723846791282,0.12685348,2606.5,2606.4,8.4957]
[1723846791486,0.55,2606.5,2606.4,8.4957]
[1723846792021,2.4853,2606.7,2606.5,3.83656]
[1723846792022,0.55,2606.6,2606.5,3.83656]
[1723846792187,0.67685159,2606.6,2606.5,6.83656]
[1723846792915,0.55,2606.6,2606.5,6.83656]
[1723846793118,0.55,2606.8,2606.5,3.0]
[1723846793305,0.12684917,2606.7,2606.5,3.0]
[1723846793509,0.67684917,2606.6,2606.5,3.0]
[1723846793706,0.12684917,2606.6,2606.5,3.0]
[1723846793907,0.67684917,2606.6,2606.5,3.0]
[1723846794108,3.14914917,2606.6,2606.5,3.0]
[1723846795425,3.0223,2606.6,2606.5,3.0]
[1723846795626,3.14915842,2606.6,2606.5,3.0]
[1723846797799,3.14915842,2606.6,2606.4,3.0]
[1723846798004,0.12685842,2606.5,2606.4,3.0]
[1723846798211,0.12685842,2606.5,2606.4,6.8367]
[1723846798399,3.0223,2606.6,2606.5,3.83656]
[1723846798599,0.55,2606.6,2606.5,6.83656]
[1723846798800,0.55,2606.7,2606.5,6.83656]
[1723846799493,0.12685133,2606.6,2606.5,6.83656]
[1723846799690,0.6768521,2606.6,2606.5,6.83656]
[1723846800128,0.55,2606.6,2606.5,6.83656]
[1723846800300,0.55,2606.7,2606.5,6.83656]
[1723846801389,0.12685036,2606.6,2606.5,6.83656]
[1723846801624,0.55,2606.6,2606.5,10.67312]
[1723846801814,0.55,2606.7,2606.6,3.83641]
[1723846802000,0.12685033,2606.7,2606.6,6.83641]
[1723846802199,0.12685033,2606.7,2606.5,3.83655]
[1723846802200,0.67685033,2606.7,2606.5,3.83655]
[1723846802509,2.4723,2606.7,2606.6,3.0]
[1723846802705,0.7,2606.3,2606.1,7.32]
[1723846802902,3.0223,2606.2,2606.1,7.32]
[1723846803102,3.14916845,2606.2,2606.1,7.32]
[1723846803413,3.14916845,2606.2,2605.5,5.49694]
[1723846803414,2.3864,2605.9,2605.5,5.49694]
[1723846803614,0.12686845,2605.8,2605.5,1.659]
[1723846803809,0.55,2605.7,2605.5,1.659]
[1723846804315,2.3864,2605.9,2605.5,1.659]
[1723846804316,0.55,2605.8,2605.5,5.497]
[1723846805029,0.55,2605.8,2605.6,3.0]
[1723846805203,0.82690243,2605.7,2605.5,1.659]
[1723846805398,0.55,2605.6,2605.5,1.659]
[1723846806416,0.71350085,2606.0,2605.6,3.83774]
[1723846806629,0.71350085,2606.0,2605.9,1.659]
[1723846806830,1.39038755,2606.0,2605.7,1.659]
[1723846807134,0.6768867,2605.9,2605.7,1.659]
[1723846807333,0.1268867,2605.8,2605.7,1.659]
[1723846807493,0.6768867,2605.8,2605.7,1.659]
[1723846807701,0.55,2605.8,2605.7,5.49674]
[1723846807899,0.55,2605.8,2605.7,8.49674]
[1723846809651,0.7,2606.3,2605.7,4.659]
[1723846809813,0.7,2606.3,2606.1,1.659]
[1723846809814,0.12686693,2606.2,2606.1,1.659]
[1723846810797,0.12687401,2606.2,2606.1,1.659]
[1723846811001,0.67687401,2606.2,2606.1,1.659]
[1723846811409,2.3864,2606.1,2606.0,3.0]
[1723846811623,3.43960141,2606.1,2605.9,4.659]
[1723846811823,0.12687401,2606.0,2605.9,1.659]
[1723846812009,0.67687401,2606.0,2605.9,1.659]
[1723846813024,0.67687401,2606.0,2605.8,3.0]
[1723846813224,0.12687401,2605.9,2605.7,4.659]
[1723846813448,0.55,2605.8,2605.7,4.659]
[1723846813606,0.67687401,2605.8,2605.7,8.49674]
[1723846814831,0.67688792,2605.8,2605.7,8.49674]
[1723846817509,0.67688792,2605.8,2605.7,4.659]
[1723846818106,0.7,2605.7,2605.5,1.659]
[1723846818420,0.67688792,2605.6,2605.5,1.659]
[1723846819468,0.67688792,2605.6,2605.5,5.49703]
[1723846819615,0.12688792,2605.6,2605.5,12.33506]
[1723846819937,0.01350085,2605.8,2605.6,3.83788]
[1723846820136,0.01350085,2605.8,2605.7,4.659]
[1723846820333,0.14038868,2605.8,2605.7,8.49674]
[1723846820521,0.69038868,2605.8,2605.7,8.49674]
[1723846823022,0.80635397,2606.2,2605.7,8.49674]
[1723846823333,0.67687814,2606.1,2605.9,1.659]
[1723846823536,0.12687814,2606.0,2605.9,1.659]
[1723846823718,0.67687814,2606.0,2605.9,1.659]
[1723846825645,0.67687814,2606.0,2605.9,5.49644]
[1723846826173,0.67687814,2606.0,2605.9,12.33388]
[1723846826174,0.12687814,2606.0,2605.9,12.33388]
[1723846826468,0.80635397,2606.4,2606.2,3.83689]
[1723846826671,0.12686347,2606.3,2606.2,5.49589]
[1723846827040,0.80635397,2606.4,2606.2,9.33278]
[1723846827239,0.12686191,2606.3,2606.2,5.49589]
[1723846830121,0.93321588,2606.3,2606.2,5.49589]
[1723846830329,4.03071588,2606.3,2606.0,1.659]
[1723846830540,1.48321588,2606.2,2606.0,4.659]
[1723846830877,0.12686191,2606.1,2606.0,8.49629]
[1723846831025,0.67686191,2606.1,2606.0,8.49629]
[1723846831222,0.67687204,2606.1,2606.0,8.49629]
[1723846832055,0.75078908,2606.1,2606.0,8.49629]
[1723846833777,0.20078908,2606.1,2606.0,12.33358]
[1723846834329,0.07391704,2606.1,2606.0,12.33358]
[1723846834534,0.12686256,2606.4,2606.1,3.83702]
[1723846834735,0.12686651,2606.3,2606.2,5.49597]
[1723846834973,0.12686651,2606.3,2606.2,8.49597]
[1723846835781,0.80635397,2606.4,2606.3,3.83685]
[1723846836092,0.80635397,2606.4,2606.3,6.83685]
[1723846836093,0.93321898,2606.4,2606.3,6.83685]
[1723846836969,0.12686501,2606.4,2606.3,6.83685]
[1723846837230,0.93321898,2606.4,2606.3,6.83685]
[1723846837436,1.48321898,2606.4,2606.3,3.0]
[1723846838281,1.55744469,2606.4,2606.3,3.0]
[1723846839394,1.55744647,2606.4,2606.3,3.0]
[1723846840267,1.55744647,2606.4,2606.3,6.83685]
[1723846843410,1.55744586,2606.4,2606.3,6.83685]
[1723846846666,1.55744586,2606.4,2606.3,3.0]
[1723846846867,3.21329189,2606.4,2606.3,3.0]
[1723846847596,4.42276252,2606.4,2606.3,3.0]
[1723846847775,4.29589462,2606.4,2606.3,3.0]
[1723846847982,4.42276236,2606.4,2606.3,3.0]
[1723846848400,5.46537629,2606.4,2606.3,3.0]
[1723846848593,5.46537629,2606.4,2606.2,1.659]
[1723846848782,1.48205321,2606.3,2606.2,1.659]
[1723846849187,1.54724205,2606.3,2606.2,1.659]
[1723846849521,1.54725951,2606.3,2606.2,1.659]
[1723846850026,1.54725951,2606.3,2606.2,5.496]
[1723846850209,1.54725951,2606.3,2606.2,8.496]
[1723846851502,1.54725657,2606.3,2606.2,12.333]
[1723846851817,0.74208068,2606.3,2606.2,12.333]
[1723846852815,0.19208068,2606.3,2606.2,12.333]
[1723846854318,0.80517589,2606.8,2606.5,2.3095]
[1723846854522,3.69061244,2606.9,2606.5,2.3095]
[1723846854523,0.1268343,2606.7,2606.6,7.67282]
[1723846854837,0.1268343,2606.7,2606.6,10.67282]
[1723846855138,0.80517589,2607.3,2607.1,3.83558]
[1723846855345,0.80517589,2607.3,2607.2,3.0]
[1723846855548,0.12681398,2607.3,2607.2,3.0]
[1723846856048,0.12681633,2607.3,2607.2,6.8355]
[1723846856849,2.4622,2607.4,2607.2,6.8355]
[1723846857056,0.1268154,2607.3,2607.2,6.8355]
[1723846857532,0.6768154,2607.3,2607.2,6.8355]
[1723846858919,0.74055356,2607.3,2607.2,6.8355]
[1723846859862,0.74055459,2607.3,2607.2,6.8355]
[1723846860353,0.19055229,2607.3,2607.2,10.67103]
[1723846860542,0.06373816,2607.3,2607.2,12.98053]
[1723846860742,2.44092223,2607.6,2607.3,3.83525]
[1723846861052,0.67681216,2607.5,2607.4,3.0]
[1723846861615,0.67681216,2607.5,2607.4,6.83523]
[1723846862652,0.74080124,2607.5,2607.4,6.83523]
[1723846864634,0.74080124,2607.5,2607.4,3.0]
[1723846864831,0.19080124,2607.5,2607.4,10.67046]
[1723846865139,0.06398908,2607.5,2607.4,10.67046]
[1723846865453,2.4622,2607.8,2607.5,3.83494]
[1723846865661,0.67680638,2607.7,2607.6,6.83491]